Cogmind - Beta 11.1 @@@ ROGUE MODE // 2022.07.28 @ 21:26:02 Player: Okkudo Result: Destroyed by G-34 Mercenary with Small Laser Performance ------------- Evolutions (0) 0 Regions Visited (1) 200 Robots Destroyed (4) 20 Value Destroyed (134) 134 Prototype IDs (0) 0 Alien Tech Used (0) 0 Bonus (0) 0 TOTAL SCORE: 354 Bonus ------- None Cogmind --------- Core Integrity 0/250 Matter 254/300 Energy 100/100 System Corruption 0% Temperature Cool (6) Movement Core (150) Ox2 Location -10/Materials Parts ------- > --- POWER (1) -------- (None) > --- PROPULSION (2) --- (None) > --- UTILITY (2) ------ Small Storage Unit > --- WEAPON (2) ------- Medium Laser > --- INVENTORY (8) ---- High-capacity Storage Unit Peak State ------------ > --- POWER ------------ Light Ion Engine > --- PROPULSION ------- Light Treads > --- UTILITY ---------- Small Storage Unit Terrain Scanner > --- WEAPON ----------- Medium Laser Medium Laser > --- INVENTORY -------- EM Pulse Gun [Rating: 6] Favorites ----------- Power Light Ion Engine Engine Light Ion Engine Propulsion Light Treads Treads Light Treads Utility Small Storage Unit Device Terrain Scanner Storage Small Storage Unit Weapon Medium Laser Energy Gun Medium Laser Build | -11 -10 ------- Run | Scr Mat Slots Evolved . | . . Power . | . . Propulsion . | . . Utility . | . . Weapon . | . . Parts Attached 8 | 5 3 Power 1 | 1 . Engine 1 | 1 . Core . | . . Reactor . | . . Propulsion 1 | 1 . Treads 1 | 1 . Leg . | . . Wheel . | . . Hover . | . . Flight . | . . Utility 2 | 1 1 Device 1 | . 1 Storage 1 | 1 . Processor . | . . Hackware . | . . Protection . | . . Artifact . | . . Weapon 4 | 2 2 Energy Gun 4 | 2 2 Energy Cannon . | . . Ballistic Gun . | . . Ballistic Cannon . | . . Launcher . | . . Special Weapon . | . . Impact Weapon . | . . Slashing Weapon . | . . Piercing Weapon . | . . Special Melee Weapon . | . . Unidentified Prototypes . | . . Parts Lost 5 | . 5 Power 1 | . 1 Propulsion 1 | . 1 Utility 1 | . 1 Weapon 2 | . 2 Highest Loss Streak 5 | . 5 To Critical Strikes . | . . Average Slot Usage (%) 59 | . 59 Engine 8 | . 8 Treads 8 | . 8 Device 5 | . 5 Storage 14 | . 14 Energy Gun 22 | . 22 Naked Turns . | . . Heaviest Build 13 | 12 13 Greatest Support 20 | 20 20 Greatest Overweight (x) 2 | 2 . Average Overweight (x) . | . . Largest Inventory Capacity 8 | 8 8 Average Capacity 7 | 7 8 Most Carried 2 | 2 2 Average Carried 1 | . 1 Final Capacity 8 | 8 8 Final Carried 1 | 1 1 Class Distribution -------------------- 100% | Mutant Dominant Class ---------------- Mutant | -10/Materials Resources | -11 -10 ----------- Run | Scr Mat Matter Collected 250 | 250 . Remotely . | . . Salvage Created 256 | 93 163 Parts 6 | 3 3 Haulers Intercepted . | . . Recyclers Shooed . | . . Parts Field Recycled . | . . Retrieved Matter . | . . Parts Self-Destructed . | . . Prevented . | . . Kills | -11 -10 ------- Run | Scr Mat Combat Hostiles Destroyed 3 | . 3 Guns 2 | . 2 Classes Destroyed 2 | 1 1 Recycler 1 | 1 . Grunt 3 | . 3 Best Kill Streak 3 | 1 3 Combat Bots Only 3 | . 3 Max Kills in Single Turn 1 | 1 1 Gunslinging . | . . Exploded . | . . Melee . | . . Uniques/NPCs Destroyed . | . . Combat | -11 -10 -------- Run | Scr Mat Damage Taken 674 | . 674 Core 259 | . 259 Absorbed by Shields . | . . Core Remaining (%) 100 | 100 . Volleys Fired 20 | 3 17 Largest 2 | 2 2 Hottest 100 | 100 100 Shots Fired 35 | 6 29 Gun 35 | 6 29 Cannon . | . . Launcher . | . . Special . | . . Kinetic . | . . Thermal 31 | 6 25 Explosive . | . . Electromagnetic 4 | . 4 Robot Hit Streak 9 | 3 9 Robot Miss Streak 4 | 3 4 Penetration Max . | . . Secondary Targets . | . . Shots Hit Robots 23 | 3 20 Core Hits 7 | 2 5 Critical Kills . | . . Critical Parts Destroyed . | . . Critical Strikes 4 | . 4 Burn 4 | . 4 Melee Attacks . | . . Impact . | . . Slashing . | . . Piercing . | . . Sneak Attacks . | . . Combat Hostiles . | . . Follow-up Attacks . | . . Damage Inflicted 292 | 39 253 Guns 292 | 39 253 Cannons . | . . Explosions . | . . Melee . | . . Ramming . | . . Kinetic . | . . Thermal 250 | 39 211 Explosive . | . . Electromagnetic 42 | . 42 Impact . | . . Slashing . | . . Piercing . | . . Highest Corruption . | . . Average Corruption . | . . Corruption Purged . | . . Corruption Blocked . | . . Overload Shots . | . . Overflow Damage . | . . Projectiles . | . . Explosions . | . . Melee . | . . Knockbacks . | . . Impact . | . . Kinetic . | . . Secondary . | . . Self-Inflicted Damage . | . . Shots . | . . Rammed . | . . Targets Rammed . | . . Kicked . | . . Crushed . | . . Highest Temperature 553 | 72 553 Average Temperature 262 | 39 297 Received Heat Transfer 369 | . 369 Effects 10 | . 10 Shutdowns 1 | . 1 Energy Bleed 1 | . 1 Matter Decay 1 | . 1 Short Circuit 3 | . 3 Damage (minor) 1 | . 1 Damage (major) 2 | . 2 Damage (core) 1 | . 1 Siege Activations . | . . Robots Corrupted . | . . Combat Hostiles . | . . Parts Fried . | . . Impact Corruptions . | . . Robots Melted 1 | . 1 Combat Hostiles 1 | . 1 Parts Melted 4 | . 4 Heat Transferred 1036 | 111 925 Parts Sabotaged . | . . Parts Stolen . | . . Parts Stripped . | . . Power Chain Reactions . | . . Missiles Intercepted . | . . Alert | -11 -10 ------- Run | Scr Mat Peak Influence 70 | 5 70 Initial 3 | . 3 Average 20 | 2 27 Maximum Alert Level . | . . Low Security (%) 100 | 100 100 Level 1 . | . . Level 2 . | . . Level 3 . | . . Level 4 . | . . Level 5 . | . . High Security . | . . Max Security . | . . Squads Dispatched . | . . Investigation . | . . Extermination . | . . Reinforcement . | . . Assault . | . . Garrison . | . . Intercept . | . . Searches Triggered . | . . Construction Impeded . | . . Haulers Reinforced . | . . Active Scanning Responses . | . . Cargo Convoy Interrupts . | . . Stealth | -11 -10 --------- Run | Scr Mat Distress Signals . | . . Communications Jammed . | . . Distress Signals . | . . Times Spotted 4 | . 4 Peak Tracking Total 4 | . 4 Tactical Retreats . | . . Traps | -11 -10 ------- Run | Scr Mat Traps Triggered . | . . Indirectly . | . . Trap Hack Attempts . | . . Triggered . | . . Disarmed . | . . Reprogrammed . | . . Reused . | . . Traps Extracted . | . . Installed . | . . Triggered . | . . Machines | -11 -10 ---------- Run | Scr Mat Machines Disabled . | . . Max in Single Turn . | . . Machines Sabotaged . | . . Garrisons Compromised . | . . Overloaded Fab Kills . | . . Hacking | -11 -10 --------- Run | Scr Mat Machines Accessed . | . . Terminals . | . . Fabricators . | . . Repair Stations . | . . Recycling Units . | . . Scanalyzers . | . . Garrison Access . | . . Total Hacks . | . . Successful . | . . Failed . | . . Catastrophic . | . . Database Lockouts . | . . Manual . | . . Terminals . | . . Fabricators . | . . Repair Stations . | . . Recycling Units . | . . Scanalyzers . | . . Garrison Access . | . . Terminal Hacks . | . . Fabricator Hacks . | . . Repair Station Hacks . | . . Recycling Unit Hacks . | . . Scanalyzer . | . . Garrison Access Hacks . | . . Unauthorized Hacks . | . . Terminals . | . . Fabricators . | . . Repair Stations . | . . Recycling Units . | . . Scanalyzers . | . . Garrison Access . | . . Data Cores Recovered . | . . Used . | . . Hacking Detections . | . . Full Trace Events . | . . Feedback Events . | . . Feedback Blocked . | . . Robot Schematics Acquired . | . . Robots Built . | . . Authchips . | . . Time . | . . Total Robot Build Rating . | . . Part Schematics Acquired . | . . Parts Built . | . . Authchips . | . . Time . | . . Total Part Build Rating . | . . Parts Repaired . | . . Time . | . . Parts Recycled . | . . Recycled Matter . | . . Retrieved Matter . | . . Retrieved Components . | . . Parts Scanalyzed . | . . Part Schematics Acquired . | . . Parts Damaged . | . . Bothacking | -11 -10 ------------ Run | Scr Mat Used RIF Installer . | . . Robots Hacked . | . . Non-combat . | . . Combat . | . . Robot Hacks Applied . | . . Relay Couplers Released . | . . Fabnet Peak Effective % . | . . Robots Rewired . | . . Allies Hacked . | . . Hacks Repelled . | . . Allies | -11 -10 -------- Run | Scr Mat Total Allies . | . . Largest Group . | . . Highest-Rated Group . | . . Highest-Rated Ally . | . . Total Orders . | . . Ally Attacks . | . . Total Damage . | . . Kills . | . . Allies Corrupted . | . . Allies Melted . | . . Intel | -11 -10 ------- Run | Scr Mat Robot Analysis Total . | . . Derelict Logs Recovered . | . . Drone Launches . | . . Drone Recoveries . | . . Exploration | -11 -10 ------------- Run | Scr Mat Turns Passed 259 | 74 185 Spaces Moved 70 | 38 32 Core 8 | 8 . Treads 62 | 30 32 Legs . | . . Wheels . | . . Hover . | . . Flight . | . . Fastest Speed 50 | 50 160 Average Speed 151 | 144 160 Slowest Speed 160 | 160 160 Overloaded Moves . | . . Propulsion Burnouts . | . . Robots Hopped . | . . Cave-ins Triggered . | . . Exploration Rate (%) 6 | 5 8 Regions Visited 1 Branch Regions . Pre-discovered Areas . | . . Known Exits Taken . | . . Unknown Exits Taken 1 | 1 . Scrap Searched . | . . Spaces Dug . | . . Terrain Destroyed . | . . Melee . | . . Projectile . | . . AOE . | . . Terrain Rammed . | . . Walls Destroyed . | . . Machines Disabled . | . . Actions | -11 -10 --------- Run | Scr Mat Total 189 | 51 138 Wait 83 | . 83 Move 69 | 37 32 Hop . | . . Pick Up 8 | 6 2 Fast Attach . | . . Attach 8 | 5 3 Detach 1 | . 1 Swap . | . . Drop . | . . Fire 20 | 3 17 Melee . | . . Ram . | . . Kick . | . . Crush . | . . Escape Stasis . | . . Rewire . | . . Trap . | . . Miscellaneous . | . . Route ------- -11/Scrapyard -10/Materials History --------- Turn | Location | Event 14 | -11/Scrapyard | Discovered new exit (range 16) 75 | -11/Scrapyard | Entered Materials 203 | -10/Materials | Core integrity fell below 50% 225 | -10/Materials | Lost 5 parts (1p1n1u2w) 241 | -10/Materials | Core integrity fell below 20% 260 | -10/Materials | Destroyed by G-34 Mercenary with Small Laser Last Messages --------------- 00181_ Med. Laser broken. 00181_ Overheating: Short circuit. 00181_ Lgt. Ion Engine destroyed. 00183_ G-47 Trooper suffers critical hit (Burn). 00186_ K-01 Serf collects debris. 00187_ Overheating: Sml. Storage Unit damaged (-55). 00187_ G-47 Trooper suffers critical hit (Burn). 00187_ G-47 Trooper destroyed. 00188_ Med. Laser broken. 00188_ Overheating: Short circuit. 00189_ K-01 Serf collects debris. 00190_ Overheating: Broken Med. Laser damaged (-4). 00190_ Overheating: Lgt. Treads damaged (-24). 00191_ Lgt. Treads broken. 00191_ Overheating: Short circuit. 00192_ Broken Med. Laser destroyed. 00194_ Broken Lgt. Treads destroyed. 00200_ Overheating: Matter decay (-41). 00203_ Overheating: Energy bleed (-24). 00216_ K-01 Serf collects debris. Map ----- +----------------------------------------------------+ | ???????? ???????????????????????? | | ???????? ???????????????????????? | | ????????# ??????????????????? | | ????????# """"" ??????????????????? | | ????????# """"""???????????????????? | | ????????# """ "???????????????????? | | ????????? ????????????????????? | | ????????? ???? ????????????????? | | ??????????# #?#???????????????????? | | ??????????# #???? ????????????????? | | ??????????# #?????????????????????? | | ??????????# #?????????????????????? | | ??????????# ##????????????????????? | | ?????? ???# #?????????????????????? | | ?????????##+##+##### ????????????????? | | ????#????# #??????????????????? | | ??????#??# #??????????????????? | | ?????????# #????#?????????????? | | ?????????# #??????????????????? | | ???????#?# #??????????????????? | | ?????????# #? ????????????????? | | ?????????# #??????????????????? | | ?????????# #??????????????????? | | ??????#??# % #??????????????????? | | ???????#?#####g########+#????????????? | | ??????????# @%% ????????? | | ??????????# ????????? | | ??????????# ????????? | | ??????????####### #########?????????? | | ????????????????? #?????????????????? | | ?????????????????? #?????????????????? | | ?????????????????? #?????????????????? | | ?????????????#?????#?????????????????? | | ?????????????????????????????????????? | | ?????????????????????????????????????? | | ?????????????????????????????????????? | | ????????#????????????????????????????? | | ??????#??????????????????????????????? | | ?????????????????????????????????????? | | ?????????????????????????????????????? | | ?????????????????????????????????????? | | ?????????????????????????????????????? | | ?????????????????????????????????????? | | ?????????????????????????????????????? | | ?????????????????????????????????????? | | ?????????????????????????????????????? | | ?????????????????????????????????????? | | ?????????????????????????????????????? | | ?????????????????????????????????????? | | ?????????????????????????????????????? | +----------------------------------------------------+ Best States ------------- Heat Dissipation 25 Energy Generation 10 Energy Capacity 125 Matter Stores 300 Matter Capacity 300 Sight Range 16 Terrain Scan Range 14 Terrain Scan Density 10 Evasion (%) 40 Recoil Reduction 1 Item Schematics ----------------- None Robot Schematics ------------------ None Fabricated ------------ Nothing Alien Tech Used ----------------- None Achievements -------------- None Challenges ------------ None Game ------ Seed ResetFlightShotgun Manual? 0 Play Time 00:05:01 Cumulative 36.5 hours Start 2022.07.28 @ 21:22:04 End 2022.07.28 @ 21:26:02 Sessions 1 Manual Loads 0 Difficulty Rogue Special Mode None Game No. 83 Rogue 83 Adventurer 0 Explorer 0 Win Type - Total 0 Types 0/0/0/0/0/0/0/0/0 Lore% 25 Gallery% 24 Achievement% 23 Wizard Run 0 Options --------- ASCII 0 Keyboard 0 Movement Numpad Keybinds 0 Fullscreen 1 Font 12/Smallcaps Map View 83x54 Tactical HUD 1 Map Filters NONE Filters NONE Steam 1 RUN: 38b34d08-0ced-4360-a242-452017de724d